fUSD/lending_fUSD_20260507
["ID","MTS","AMOUNT","RATE_DAILY","PERIOD"]
[421792540,1778165433000,-346.0,0.0002,2]
[421792537,1778165433000,-114.08,0.00019687,2]
[421792536,1778165433000,-153.92,0.0001769,2]
[421792538,1778165433000,-185.57100614,0.00019687,2]
[421792539,1778165433000,-303.0,0.0002,2]
[421792544,1778165433000,-346.0,0.00021,2]
[421792541,1778165433000,-184.0,0.0002,2]
[421792543,1778165433000,-303.0,0.00021,2]
[421792545,1778165433000,-184.0,0.00021,2]
[421792550,1778165433000,-534.06656813,0.00021918,2]
[421792548,1778165433000,-212.99,0.0002187,2]
[421792547,1778165433000,-205.23737566,0.0002186,2]
[421792542,1778165433000,-151.0,0.00020381,2]
[421792549,1778165433000,-3825.1116182,0.00021918,2]
[421792546,1778165433000,-166.33,0.00021009,2]
[421792582,1778165434000,-1244.03,0.00022839,2]
[421792557,1778165434000,-167.42,0.00022163,2]
[421792562,1778165434000,-200.0,0.00022344,2]
[421792566,1778165434000,-151.0,0.00022377,2]
[421792560,1778165434000,-1244.03,0.00022282,2]
[421792558,1778165434000,-3442.38,0.00022208,2]
[421792570,1778165434000,-151.0,0.00022407,2]
[421792559,1778165434000,-640.0,0.00022248,2]
[421792553,1778165434000,-346.0,0.00022,2]
[421792564,1778165434000,-151.0,0.00022353,2]
[421792554,1778165434000,-184.0,0.00022,2]
[421792574,1778165434000,-151.0,0.00022407,2]
[421792556,1778165434000,-184.56,0.00022134,2]
[421792555,1778165434000,-166.33,0.00022115,30]
[421792552,1778165434000,-303.0,0.00022,2]
[421792551,1778165434000,-640.82181367,0.00021918,2]
[421792568,1778165434000,-217.23026069,0.00022407,2]
[421792576,1778165434000,-152.0,0.00022407,2]
[421792572,1778165434000,-151.0,0.00022407,2]
[421792578,1778165434000,-666.7,0.00022407,2]
[421792604,1778165434000,-170.00076343,0.00023529,2]
[421792601,1778165434000,-150.0,0.00023506,2]
[421792599,1778165434000,-355.58610813,0.00023506,2]
[421792584,1778165434000,-303.0,0.00023,2]
[421792611,1778165434000,-500.0,0.00023529,2]
[421792615,1778165434000,-249.48309828,0.00023529,2]
[421792613,1778165434000,-567.66415206,0.00023529,2]
[421792606,1778165434000,-500.0,0.00023529,2]
[421792609,1778165434000,-319.60742518,0.00023529,2]
[421792617,1778165434000,-110503.21192794,0.0002353,2]
[421792597,1778165434000,-568.0,0.000235,2]
[421792593,1778165434000,-214.63993676,0.00023402,2]
[421792591,1778165434000,-1244.03,0.00023396,2]
[421792589,1778165434000,-166.33,0.0002322,30]
[421792586,1778165434000,-346.0,0.00023,2]
[421792580,1778165434000,-160.06,0.00022565,2]
[421792587,1778165434000,-184.0,0.00023,2]
[421792595,1778165434000,-200.0,0.000235,8]
[421792663,1778165438000,-977.84439097,0.000236,2]
[421792661,1778165438000,-11050.0180251,0.000236,2]
[421792669,1778165438000,-151.0,0.0002363,2]
[421792659,1778165438000,-151.0,0.00023586,2]
[421792657,1778165438000,-5642.77808667,0.00023564,2]
[421792653,1778165438000,-7814.39746408,0.00023564,2]
[421792656,1778165438000,-5000.0,0.00023564,2]
[421792652,1778165438000,-5906.16383652,0.00023564,2]
[421792654,1778165438000,-2000.0,0.00023564,2]
[421792651,1778165438000,-1366597.63391206,0.0002353,2]
[421792658,1778165438000,-200.0,0.00023586,2]
[421792655,1778165438000,-2500.0,0.00023564,2]
[421792660,1778165438000,-151.0,0.00023586,2]
[421792650,1778165438000,-652.41286,0.0002353,2]
[421792666,1778165438000,-289.00756608,0.000236,2]
[421792676,1778165438000,-380.52932165,0.00023664,2]
[421792678,1778165438000,-439.35064515,0.00023664,2]
[421792675,1778165438000,-26403.79226853,0.00023664,2]
[421792673,1778165438000,-701954.44768621,0.00023664,2]
[421792677,1778165438000,-8863.82231286,0.00023664,2]
[421792674,1778165438000,-1153947.74676859,0.00023664,2]
[421792662,1778165438000,-400.0,0.000236,8]
[421792670,1778165438000,-500.0,0.00023663,2]
[421792671,1778165438000,-11619.36620961,0.00023663,20]
[421792668,1778165438000,-151.0,0.0002363,2]
[421792667,1778165438000,-47517.53808494,0.0002363,2]
[421792665,1778165438000,-14926.62091659,0.000236,2]
[421792664,1778165438000,-296.11744541,0.000236,2]
[421792672,1778165438000,-288.92863669,0.00023664,2]
[421792715,1778165440000,-16004.0,0.00023664,2]
[421792714,1778165440000,-802.69,0.00023664,2]
[421792712,1778165440000,-863.25898408,0.00023664,2]
[421792713,1778165440000,-11019.93994511,0.00023664,2]
[421792711,1778165440000,-8009.2,0.00023664,2]
[421792733,1778165443000,-39669.31363501,0.00023664,2]
[421792732,1778165443000,-455.68636499,0.00023,2]
[421792736,1778165444000,-600.0,0.000237,8]
[421792735,1778165444000,-381.15,0.000237,7]
[421792742,1778165444000,-239076.55849324,0.00023842,2]
[421792744,1778165444000,-10613.1167719,0.00023842,2]
[421792745,1778165444000,-98062.64770329,0.00023842,2]
[421792739,1778165444000,-233.03555531,0.00023842,2]
[421792737,1778165444000,-151.0,0.00023764,2]
[421792738,1778165444000,-800.0,0.000238,8]
[421792740,1778165444000,-279025.22905666,0.00023842,2]
[421792734,1778165444000,-531641.90843281,0.00023664,2]
[421792753,1778165446000,-4452.41266483,0.00023842,2]
[421792756,1778165446000,-2011.1908033,0.00023842,2]
[421792759,1778165446000,-364.8646066,0.00023842,2]
[421792760,1778165446000,-8055.58798482,0.00023842,2]
[421792762,1778165446000,-5028.68559433,0.00023842,2]
[421792761,1778165446000,-401.65716503,0.00023842,2]
[421792757,1778165446000,-154.5499749,0.00023842,2]
[421792755,1778165446000,-33205.46200008,0.00023842,2]
[421792754,1778165446000,-1366.5041128,0.00023842,2]
[421792758,1778165446000,-191055.43187701,0.00023842,2]
[421792763,1778165447000,-400.06,0.00023842,2]
[421792764,1778165447000,-450.335034,0.00023842,2]
[421792850,1778165476000,-155.81,0.00023564,2]
[421792849,1778165476000,-155.81,0.00023564,2]
[421792851,1778165595000,3414.17,0.00030137,120]
[421792858,1778166095000,2552.68870015,0.000114,2]
[421792859,1778166099000,3307.07,0.00022,30]
[421792864,1778166153000,4558.21735352,8e-05,2]
[421792866,1778166157000,7244.49017263,0.00011,2]
[421792867,1778166175000,11802.83146511,0.000295,120]
[421792868,1778166278000,10344.6037737,0.00012,2]
[421792869,1778166306000,1112.57127248,0.0001,2]
[421792870,1778166329000,8887.43872752,0.000107,2]
[421792872,1778166329000,10000.01,0.000107,2]
[421792873,1778166329000,10000.01,0.000107,2]
[421792875,1778166329000,10000.01,0.000107,2]
[421792874,1778166329000,10000.01,0.000107,2]
[421792876,1778166329000,7300.17813826,0.000107,2]
[421792871,1778166329000,10000.01,0.000107,2]
[421792890,1778166555000,271.0,0.000108,7]
[421792892,1778166625000,300.16813826,0.0001194,2]
[421792891,1778166625000,2699.83186174,0.0001194,2]
[421792896,1778166631000,-3887.0,0.00012,2]
[421792894,1778166631000,-153.0,0.00011999,2]
[421792895,1778166631000,-543.09491183,0.00012,2]
[421792900,1778166631000,-513.13150344,0.00012,2]
[421792898,1778166631000,-401.205,0.00012,2]
[421792899,1778166631000,-69922.31962182,0.00012,2]
[421792897,1778166631000,-640.28367918,0.00012,2]
[421792949,1778166637000,-7814.39746402,0.00017319,2]
[421792951,1778166637000,-5906.16383643,0.00017474,2]
[421792952,1778166637000,-7814.39746402,0.00018187,2]
[421792946,1778166637000,-391.4818038,0.00015881,3]
[421792957,1778166637000,-5906.16383643,0.00019167,2]
[421792947,1778166637000,-7814.39746402,0.0001645,2]
[421792942,1778166637000,-2020279.17550804,0.00012,2]
[421792945,1778166637000,-5906.16383652,0.00015781,2]
[421792944,1778166637000,-1244.67165652,0.00015681,2]
[421792940,1778166637000,-26403.79226853,0.00012,2]
[421792941,1778166637000,-380.52932165,0.00012,2]
[421792948,1778166637000,-5906.16383643,0.00016628,2]
[421792943,1778166637000,-7814.39746408,0.00015581,2]
[421792950,1778166637000,-158.97,0.00017436,2]
[421792958,1778166637000,-7814.39746402,0.00019925,2]
[421792956,1778166637000,-7814.39746402,0.00019056,2]
[421792953,1778166637000,-5906.16383643,0.00018321,2]
[421792965,1778166637000,-412.0,0.0002,2]
[421792969,1778166637000,-400.0,0.0002,2]
[421792968,1778166637000,-409.0,0.0002,2]
[421792964,1778166637000,-407.0,0.0002,2]
[421792963,1778166637000,-11430.63630082,0.0002,2]
[421792967,1778166637000,-409.0,0.0002,2]
[421792960,1778166637000,-277.0,0.0002,2]
[421792961,1778166637000,-151.0,0.0002,2]
[421792959,1778166637000,-242.0,0.0002,2]
[421792966,1778166637000,-151.0,0.0002,2]
[421792954,1778166637000,-151.0,0.0001841,2]
[421792955,1778166637000,-1244.67165648,0.00018838,2]
[421792962,1778166637000,-155.0,0.0002,2]
[421792995,1778166638000,-497.61,0.00021704,2]
[421792997,1778166638000,-5906.16383643,0.00021707,2]
[421792993,1778166638000,-7814.39746402,0.00021662,2]
[421793001,1778166638000,-1244.67165648,0.00021995,2]
[421792999,1778166638000,-5000.0,0.00021918,2]
[421793003,1778166638000,-242.0,0.00022,2]
[421793013,1778166638000,-175.37,0.00022065,2]
[421793011,1778166638000,-399.98,0.00022049,2]
[421793009,1778166638000,-155.0,0.00022,2]
[421793007,1778166638000,-151.0,0.00022,2]
[421793025,1778166638000,-401.0,0.00022515,2]
[421793027,1778166638000,-7814.39746402,0.00022531,2]
[421792991,1778166638000,-497.61,0.00021175,2]
[421793005,1778166638000,-277.0,0.00022,2]
[421792989,1778166638000,-155.0,0.00021,2]
[421792985,1778166638000,-242.0,0.00021,2]
[421792978,1778166638000,-401.0,0.00020124,2]
[421792979,1778166638000,-404.0,0.00020291,2]
[421792981,1778166638000,-400.0,0.00020683,2]
[421792982,1778166638000,-7814.39746402,0.00020794,2]
[421792974,1778166638000,-399.0,0.0002,2]
[421793019,1778166638000,-151.0,0.00022353,2]
[421792976,1778166638000,-398.0,0.00020023,2]
[421792975,1778166638000,-5906.16383643,0.00020014,2]
[421792973,1778166638000,-410.0,0.0002,2]
[421792977,1778166638000,-404.0,0.00020053,2]
[421792980,1778166638000,-151.0,0.00020381,2]
[421792972,1778166638000,-409.0,0.0002,2]
[421792970,1778166638000,-409.0,0.0002,2]
[421792971,1778166638000,-151.0,0.0002,2]
[421792987,1778166638000,-277.0,0.00021,2]
[421793015,1778166638000,-497.61,0.00022233,2]
[421792983,1778166638000,-5906.16383643,0.0002086,2]
[421793029,1778166638000,-5906.16383643,0.00022553,2]
[421793090,1778166638000,-1153947.74676859,0.00023464,2]
[421793087,1778166638000,-495.33574361,0.00023464,2]
[421793085,1778166638000,-1149.0,0.00023464,5]
[421793072,1778166638000,-289.00756608,0.00023373,2]
[421793070,1778166638000,-14926.62091659,0.00023373,2]
[421793067,1778166638000,-296.11744541,0.00023373,2]
[421793083,1778166638000,-7814.39746402,0.000234,2]
[421793081,1778166638000,-977.84439097,0.000234,2]
[421793078,1778166638000,-10000.0,0.000234,2]
[421793080,1778166638000,-5906.16383643,0.000234,2]
[421793074,1778166638000,-336.47298458,0.00023386,2]
[421793076,1778166638000,-805.069,0.00023386,3]
[421793063,1778166638000,-5000.0,0.00023364,2]
[421793061,1778166638000,-193.81,0.00023364,2]
[421793047,1778166638000,-398.0,0.00023154,2]
[421793065,1778166638000,-2500.0,0.00023364,2]
[421793045,1778166638000,-170.43,0.00023058,2]
[421793059,1778166638000,-5642.77808667,0.00023364,2]
[421793021,1778166638000,-227.74789625,0.00022407,2]
[421793033,1778166638000,-403.0,0.00022743,2]
[421793031,1778166638000,-200.55980911,0.00022653,2]
[421793023,1778166638000,-250.0,0.00022407,2]
[421793037,1778166638000,-497.61,0.00022763,2]
[421793035,1778166638000,-401.0,0.00022743,2]
[421793039,1778166638000,-242.0,0.00023,2]
[421793018,1778166638000,-512.0,0.00022317,2]
[421793049,1778166638000,-497.61,0.00023292,2]
[421793051,1778166638000,-200.0,0.0002335,2]
[421793053,1778166638000,-151.0,0.0002335,2]
[421793057,1778166638000,-214.63993676,0.00023352,2]
[421793055,1778166638000,-151.0,0.0002335,2]
[421793041,1778166638000,-277.0,0.00023,2]
[421793043,1778166638000,-155.0,0.00023,2]
[421793136,1778166641000,-260.40878853,0.00023464,2]
[421793145,1778166642000,-760725.37645948,0.00023464,2]
[421793146,1778166643000,-40129.35843195,0.00023464,2]
[421793155,1778166645000,-2215.98523773,0.00023373,2]
[421793161,1778166655000,6000.0,0.00011944,2]
[421793163,1778166678000,3273.47,0.00022,30]
[421793164,1778166681000,1646.00080954,0.00030136,120]
[421793165,1778166682000,51410.27,0.00021245,30]
[421793167,1778166780000,1586.49,0.00022,30]
[421793168,1778166785000,49781.72,0.00021731,30]
[421793169,1778166885000,29545.66,0.00021757,30]
[421793170,1778166913000,1000.0,0.0003013,120]
[421793171,1778166946000,152.0,0.00021773,30]
[421793173,1778166947000,152.0,0.00029944,120]
[421793172,1778166947000,152.0,0.00021773,30]
[421793177,1778167094000,23316.59,0.00022,30]
[421793178,1778167140000,160.0,0.000301,120]
[421793179,1778167163000,234.42,0.00030137,120]
[421793180,1778167169000,152.0,0.0002178,30]
[421793181,1778167169000,152.0,0.0002178,30]
[421793182,1778167170000,152.0,0.00029944,120]
[421793185,1778167467000,152.0,0.0002178,30]
[421793206,1778167831000,-150.0,0.00014794,2]
[421793207,1778167831000,-384.22620767,0.00016273,2]
[421793210,1778167831000,-390.0,0.0002,2]
[421793209,1778167831000,-160.4,0.0001841,2]
[421793208,1778167831000,-160.4,0.00016438,2]
[421793214,1778167831000,-280.72522216,0.0002,2]
[421793218,1778167831000,-2816.15708596,0.00021,2]
[421793211,1778167831000,-473.0,0.0002,2]
[421793213,1778167831000,-116.27477784,0.0002,2]
[421793226,1778167831000,-2000.0,0.00021639,2]
[421793216,1778167831000,-166.33,0.0002069,2]
[421793215,1778167831000,-160.4,0.00020381,2]
[421793217,1778167831000,-665.32180989,0.00021,2]
[421793219,1778167831000,-2829.81285236,0.00021,2]
[421793212,1778167831000,-195.0,0.0002,2]
[421793224,1778167831000,-557.96,0.00021273,2]
[421793220,1778167831000,-11889.06004923,0.00021,2]
[421793235,1778167831000,-227.74789625,0.00022407,2]
[421793234,1778167831000,-160.4,0.00022353,2]
[421793228,1778167831000,-5000.0,0.00021918,2]
[421793233,1778167831000,-399.98,0.00022078,2]
[421793230,1778167831000,-473.0,0.00022,2]
[421793231,1778167831000,-195.0,0.00022,2]
[421793232,1778167831000,-2097.62,0.0002201,2]
[421793227,1778167831000,-166.33,0.00021779,2]
[421793222,1778167831000,-473.0,0.00021,2]
[421793225,1778167831000,-1000.0,0.00021623,2]
[421793221,1778167831000,-390.0,0.00021,2]
[421793223,1778167831000,-195.0,0.00021,2]
[421793229,1778167831000,-390.0,0.00022,2]
[421793257,1778167832000,-3924.24242709,0.00022964,2]
[421793273,1778167832000,-473.0,0.00023,2]
[421793272,1778167832000,-390.0,0.00023,2]
[421793260,1778167832000,-296.11744541,0.00022964,2]
[421793249,1778167832000,-1300.0,0.000228,8]
[421793243,1778167832000,-557.96,0.00022691,2]
[421793245,1778167832000,-1000.0,0.000227,8]
[421793241,1778167832000,-200.55980911,0.00022653,2]
[421793238,1778167832000,-2097.62,0.0002256,2]
[421793259,1778167832000,-977.84439097,0.00022964,2]
[421793255,1778167832000,-360.22000665,0.00022964,2]
[421793239,1778167832000,-299.99,0.00022562,7]
[421793253,1778167832000,-1700.0,0.000229,8]
[421793251,1778167832000,-166.33,0.00022868,30]
[421793240,1778167832000,-600.0,0.000226,8]
[421793237,1778167832000,-300.0,0.000225,8]
[421793236,1778167832000,-208.98,0.00022468,2]
[421793247,1778167832000,-214.63993676,0.00022715,2]
[421793262,1778167832000,-223.04056798,0.00022964,4]
[421793274,1778167832000,-160.0,0.00023,5]
[421793276,1778167832000,-1998.0,0.00023,2]
[421793275,1778167832000,-195.0,0.00023,2]
[421793286,1778167832000,-378.35139607,0.00023064,2]
[421793285,1778167832000,-57057.61939828,0.00023064,2]
[421793284,1778167832000,-150.0,0.00023063,2]
[421793287,1778167832000,-399.92906059,0.00023064,2]
[421793282,1778167832000,-500.0,0.00023063,2]
[421793281,1778167832000,-223.72519762,0.00023063,2]
[421793280,1778167832000,-247.36490644,0.00023063,2]
[421793283,1778167832000,-11619.36620961,0.00023063,20]
[421793279,1778167832000,-500.0,0.00023063,2]
[421793264,1778167832000,-5642.77808667,0.00022964,2]
[421793269,1778167832000,-151.0,0.00022986,2]
[421793270,1778167832000,-151.0,0.00022986,2]
[421793268,1778167832000,-200.0,0.00022986,2]
[421793277,1778167832000,-262.17750054,0.00023054,2]
[421793271,1778167832000,-6678.37700795,0.00023,5]
[421793266,1778167832000,-2500.0,0.00022964,2]
[421793278,1778167832000,-472.40575375,0.00023063,2]
[421793288,1778167833000,152.0,0.00021773,30]
[421793293,1778167837000,-152.0,0.00018112,2]
[421793294,1778167837000,-1153795.74676859,0.00023064,2]
[421793295,1778167837000,-24544.832,0.00023064,2]
[421793300,1778167838000,-733.57500088,0.00023064,2]
[421793298,1778167838000,-771.07976,0.00023064,2]
[421793297,1778167838000,-80067.025802,0.00023064,2]
[421793296,1778167838000,-40097.72075256,0.00023064,2]
[421793299,1778167838000,-797.26,0.00023064,2]
[421793390,1778167841000,-288.11979857,0.00023064,2]
[421793388,1778167841000,-1596.82,0.00023064,2]
[421793395,1778167843000,-270.5095668,0.00023064,2]
[421793396,1778167843000,-339.12719406,0.00023064,2]
[421793398,1778167843000,-136050.71038785,0.00023064,2]
[421793399,1778167843000,-41894.63510905,0.00023064,2]
[421793397,1778167843000,-2811.57311375,0.00023064,2]
[421793406,1778167845000,-289.00756608,0.00022964,2]
[421793407,1778167845000,-26662.79426306,0.00023064,2]
[421793408,1778167845000,-4000.0,0.00023064,2]
[421793405,1778167845000,-250.0,0.00020588,2]
[421793412,1778167846000,-11456.49999995,0.00023064,2]
[421793411,1778167846000,-7724.84316758,0.00023064,2]
[421793410,1778167846000,-7357.94619187,0.00023064,2]
[421793409,1778167846000,-3726.75064716,0.00023064,2]
[421793418,1778167858000,152.0,0.00021768,30]
[421793423,1778167986000,268.41,0.00027751,120]
[421793422,1778167986000,268.41,0.00024976,120]
[421793429,1778168196000,1000.0,0.0003013,120]
[421793432,1778168305000,586.79,0.00010827,2]
[421793433,1778168305000,586.79,0.00011397,2]
[421793435,1778168485000,7993.91,0.00030137,120]
[421793466,1778168827000,200.0,0.00011966,2]
[421793467,1778168830000,500.0,0.00011966,2]
[421793470,1778168831000,176.76069074,0.00030137,120]
[421793469,1778168831000,151.0,0.00011966,2]
[421793468,1778168831000,500.0,0.00011966,2]
[421793473,1778168832000,151.0,0.00011966,2]
[421793472,1778168832000,151.0,0.00011966,2]
[421793471,1778168832000,500.0,0.00011966,2]
[421793474,1778168833000,500.0,0.00011966,2]
[421793475,1778168833000,151.0,0.00011966,2]
[421793476,1778168833000,500.0,0.00011966,2]
[421793477,1778168833000,151.0,0.00011966,2]
[421793479,1778168834000,151.0,0.00011966,2]
[421793478,1778168834000,500.0,0.00011966,2]
[421793483,1778168835000,151.0,0.00011966,2]
[421793482,1778168835000,500.0,0.00011966,2]
[421793481,1778168835000,500.0,0.00011966,2]
[421793480,1778168835000,151.0,0.00011966,2]
[421793486,1778168836000,151.0,0.00011966,2]
[421793485,1778168836000,621.25589089,0.00011966,2]
[421793484,1778168836000,151.0,0.00011966,2]
[421793487,1778168837000,151.0,0.00011966,2]
[421793489,1778168902000,2000.0,0.0003013,120]
[421793490,1778168904000,2000.0,0.0003013,120]
[421793491,1778168923000,2000.0,0.0003013,120]
[421793492,1778168946000,2000.0,0.0003013,120]
[421793493,1778168949000,2000.0,0.0003013,120]
[421793496,1778168993000,2000.0,0.0003013,120]
[421793497,1778169002000,254.0,0.00023544,120]
[421793528,1778169032000,-4000.0,0.00019412,2]
[421793539,1778169032000,-220.94247839,0.0002,2]
[421793536,1778169032000,-601.0,0.0002,2]
[421793531,1778169032000,-4000.0,0.00019898,2]
[421793533,1778169032000,-200.0,0.00019958,2]
[421793530,1778169032000,-200.0,0.00019825,2]
[421793532,1778169032000,-586.79,0.00019944,2]
[421793537,1778169032000,-227.0,0.0002,2]
[421793561,1778169032000,-586.79,0.00020514,2]
[421793538,1778169032000,-238.0,0.0002,2]
[421793534,1778169032000,-1351.0,0.00019988,2]
[421793541,1778169032000,-150.0,0.00020026,2]
[421793551,1778169032000,-150.0,0.00020162,2]
[421793553,1778169032000,-167.17,0.00020164,2]
[421793555,1778169032000,-151.0,0.00020381,2]
[421793557,1778169032000,-4000.0,0.00020383,2]
[421793529,1778169032000,-2500.0,0.00019746,2]
[421793535,1778169032000,-514.0,0.0002,2]
[421793527,1778169032000,-586.79,0.00019374,2]
[421793514,1778169032000,-586.79,0.00016525,2]
[421793526,1778169032000,-586.79,0.00018804,2]
[421793503,1778169032000,-586.79,0.00012536,2]
[421793502,1778169032000,-586.79,0.00011966,2]
[421793507,1778169032000,-586.79,0.00014246,2]
[421793505,1778169032000,-586.79,0.00013676,2]
[421793504,1778169032000,-586.79,0.00013106,2]
[421793509,1778169032000,-586.79,0.00015385,2]
[421793506,1778169032000,-250.0,0.00014,2]
[421793508,1778169032000,-586.79,0.00014816,2]
[421793510,1778169032000,-586.79,0.00015955,2]
[421793511,1778169032000,-159.93,0.00015977,2]
[421793513,1778169032000,-300.0,0.00016,2]
[421793559,1778169032000,-166.66,0.00020433,2]
[421793515,1778169032000,-152.0,0.0001698,7]
[421793523,1778169032000,-1200.0,0.00018234,2]
[421793512,1778169032000,-250.0,0.00015996,2]
[421793525,1778169032000,-586.79,0.00018235,2]
[421793519,1778169032000,-586.79,0.00017095,2]
[421793521,1778169032000,-586.79,0.00017665,2]
[421793545,1778169032000,-255.0,0.00020068,2]
[421793517,1778169032000,-152.0,0.0001698,7]
[421793543,1778169032000,-153.59,0.00020068,2]
[421793586,1778169032000,-279.700248,0.00022383,14]
[421793583,1778169032000,-199.99,0.0002217,2]
[421793581,1778169032000,-227.0,0.00022,2]
[421793587,1778169032000,-500.0,0.00022399,2]
[421793582,1778169032000,-238.0,0.00022,2]
[421793591,1778169032000,-500.0,0.00022399,2]
[421793601,1778169032000,-506.60763834,0.00022539,2]
[421793590,1778169032000,-500.0,0.00022399,2]
[421793585,1778169032000,-151.0,0.00022353,2]
[421793592,1778169032000,-374.83062335,0.00022399,2]
[421793596,1778169032000,-1120.42,0.00022466,2]
[421793593,1778169032000,-216.36050144,0.00022407,2]
[421793595,1778169032000,-337.13,0.00022466,2]
[421793597,1778169032000,-300.0,0.000225,8]
[421793598,1778169032000,-8946.34,0.0002253,2]
[421793599,1778169032000,-8946.34,0.0002253,2]
[421793602,1778169032000,-22051.33471903,0.0002254,2]
[421793548,1778169032000,-2000.0,0.00020087,2]
[421793600,1778169032000,-523.15543451,0.00022539,2]
[421793584,1778169032000,-268.41,0.00022201,2]
[421793594,1778169032000,-168.051492,0.00022436,14]
[421793589,1778169032000,-500.0,0.00022399,2]
[421793547,1778169032000,-757.28,0.00020081,2]
[421793580,1778169032000,-601.0,0.00022,2]
[421793563,1778169032000,-166.31,0.00020561,2]
[421793565,1778169032000,-4000.0,0.00020868,2]
[421793567,1778169032000,-601.0,0.00021,2]
[421793568,1778169032000,-227.0,0.00021,2]
[421793570,1778169032000,-586.79,0.00021084,2]
[421793566,1778169032000,-514.0,0.00021,2]
[421793576,1778169032000,-166.31,0.00021919,2]
[421793575,1778169032000,-5000.0,0.00021918,2]
[421793577,1778169032000,-1000.0,0.0002197,2]
[421793571,1778169032000,-166.31,0.0002124,2]
[421793574,1778169032000,-586.79,0.00021654,2]
[421793573,1778169032000,-4000.0,0.00021354,2]
[421793572,1778169032000,-404.0,0.00021348,2]
[421793578,1778169032000,-1211.72901868,0.0002197,2]
[421793579,1778169032000,-514.0,0.00022,2]
[421793569,1778169032000,-238.0,0.00021,2]
[421793588,1778169032000,-500.0,0.00022399,2]
[421793603,1778169037000,2000.0,0.0003013,120]
[421793620,1778169038000,-5000.0,0.0002264,2]
[421793624,1778169038000,-332.50702776,0.00022664,2]
[421793626,1778169038000,-14926.62091659,0.00022664,2]
[421793637,1778169038000,-160.0,0.00022715,2]
[421793628,1778169038000,-263.53316938,0.00022664,2]
[421793630,1778169038000,-710.25616616,0.00022673,2]
[421793633,1778169038000,-900.0,0.000227,8]
[421793639,1778169038000,-229.28589389,0.0002273,2]
[421793622,1778169038000,-2500.0,0.0002264,2]
[421793609,1778169038000,-523.74669795,0.00022539,2]
[421793618,1778169038000,-2000.0,0.0002264,2]
[421793616,1778169038000,-2000.0,0.00022598,2]
[421793617,1778169038000,-600.0,0.000226,8]
[421793614,1778169038000,-166.66,0.00022584,30]
[421793615,1778169038000,-166.31,0.00022598,2]
[421793612,1778169038000,-653.6553754,0.0002254,2]
[421793613,1778169038000,-528013.36042855,0.0002254,2]
[421793611,1778169038000,-766.39805676,0.0002254,2]
[421793635,1778169038000,-214.63993676,0.00022715,2]
[421793619,1778169038000,-1505.59519164,0.0002264,2]
[421793641,1778169038000,-151.0,0.00022737,7]
[421793610,1778169038000,-57171.55602026,0.0002254,2]
[421793645,1778169038000,-500.0,0.00022739,2]
[421793643,1778169038000,-500.0,0.00022739,2]
[421793684,1778169038000,-474.54657793,0.00022739,2]
[421793686,1778169038000,-582749.62125759,0.0002274,2]
[421793682,1778169038000,-500.0,0.00022739,2]
[421793678,1778169038000,-500.0,0.00022739,2]
[421793671,1778169038000,-500.0,0.00022739,2]
[421793680,1778169038000,-500.0,0.00022739,2]